[Event "*** Titled Tuesday Blitz"]
[Site "Chess.com"]
[Date "2021.02.16"]
[Round "7"]
[White "zmeeed67"]
[Black "beautroll"]
[Result "0-1"]
[WhiteElo "2319"]
[BlackElo "2482"]
[TimeControl "180+1"]
[EndTime "11:18:56 PST"]
[Termination "beautroll won on time"]

1. e4 {[%clk 0:03:00.9]} 1... c5 {[%clk 0:02:59.7]} 2. g3 {[%clk 0:02:59.8]}
2... d5 {[%clk 0:02:58.5]} 3. exd5 {[%clk 0:02:59.1]} 3... Qxd5 {[%clk
0:02:58.5]} 4. Qf3 {[%clk 0:02:59.4]} 4... Nf6 {[%clk 0:02:53.7]} 5. Nc3 {[%clk
0:02:57.6]} 5... Qd6 {[%clk 0:02:46.7]} 6. Ne4 {[%clk 0:02:38.2]} 6... Qe5
{[%clk 0:02:33.7]} 7. d3 {[%clk 0:02:29.8]} 7... Bf5 {[%clk 0:02:17.7]} 8. Bg2
{[%clk 0:02:22.4]} 8... Nc6 {[%clk 0:02:14.4]} 9. Ne2 {[%clk 0:02:14.4]} 9... e6
{[%clk 0:01:40.5]} 10. O-O {[%clk 0:02:09.6]} 10... Bxe4 {[%clk 0:01:35.2]} 11.
dxe4 {[%clk 0:02:07.9]} 11... Be7 {[%clk 0:01:34.6]} 12. Bf4 {[%clk 0:01:59.8]}
12... Qxb2 {[%clk 0:01:27.9]} 13. Rab1 {[%clk 0:01:57.4]} 13... Qxc2 {[%clk
0:01:26.7]} 14. Rxb7 {[%clk 0:01:42.5]} 14... e5 {[%clk 0:01:25.7]} 15. Rc1
{[%clk 0:01:09.7]} 15... Qxa2 {[%clk 0:01:20.2]} 16. Bg5 {[%clk 0:00:59.6]}
16... O-O {[%clk 0:01:13.6]} 17. Nc3 {[%clk 0:00:56.8]} 17... Qa6 {[%clk
0:01:06.3]} 18. Rc7 {[%clk 0:00:40.5]} 18... Nd4 {[%clk 0:00:51]} 19. Qd1 {[%clk
0:00:36.6]} 19... Bd6 {[%clk 0:00:26.2]} 20. Bxf6 {[%clk 0:00:35.1]} 20... Bxc7
{[%clk 0:00:26.5]} 21. Nd5 {[%clk 0:00:32.1]} 21... gxf6 {[%clk 0:00:26.4]} 22.
Nxc7 {[%clk 0:00:29]} 22... Qc6 {[%clk 0:00:26]} 23. Nxa8 {[%clk 0:00:25]} 23...
Rxa8 {[%clk 0:00:24.9]} 24. Qg4+ {[%clk 0:00:19.9]} 24... Kh8 {[%clk 0:00:25.2]}
25. h4 {[%clk 0:00:17.9]} 25... Rg8 {[%clk 0:00:25.2]} 26. Qh5 {[%clk
0:00:14.5]} 26... Rg6 {[%clk 0:00:21.4]} 27. Bh3 {[%clk 0:00:13.1]} 27... Qxe4
{[%clk 0:00:19.1]} 28. Bf5 {[%clk 0:00:11.1]} 28... Qxf5 {[%clk 0:00:18.4]} 29.
Qd1 {[%clk 0:00:10.1]} 29... Nf3+ {[%clk 0:00:14.1]} 30. Kg2 {[%clk 0:00:09.1]}
30... Nxh4+ {[%clk 0:00:14.4]} 31. Kg1 {[%clk 0:00:09.2]} 31... Nf3+ {[%clk
0:00:14.5]} 32. Kg2 {[%clk 0:00:09.1]} 32... Nd4 {[%clk 0:00:13.3]} 33. Rxc5
{[%clk 0:00:07.8]} 33... Qe4+ {[%clk 0:00:13.7]} 34. Kg1 {[%clk 0:00:06.4]}
34... Nf3+ {[%clk 0:00:13.3]} 35. Kf1 {[%clk 0:00:06.4]} 35... Nh2+ {[%clk
0:00:10]} 36. Kg1 {[%clk 0:00:04.6]} 36... Ng4 {[%clk 0:00:10]} 0-1

[Event "*** Titled Tuesday Blitz"]
[Site "Chess.com"]
[Date "2021.02.16"]
[Round "7"]
[White "Euge_chess"]
[Black "MIJuanReyesRosa"]
[Result "1-0"]
[WhiteElo "2102"]
[BlackElo "2107"]
[TimeControl "180+1"]
[EndTime "11:18:56 PST"]
[Termination "Euge_chess won on time"]

1. e4 {[%clk 0:03:00.9]} 1... c5 {[%clk 0:02:58.4]} 2. c3 {[%clk 0:03:00.7]}
2... g6 {[%clk 0:02:56.7]} 3. d4 {[%clk 0:03:00.5]} 3... cxd4 {[%clk 0:02:56.8]}
4. cxd4 {[%clk 0:03:01.3]} 4... d5 {[%clk 0:02:57.1]} 5. e5 {[%clk 0:03:01.4]}
5... Nc6 {[%clk 0:02:57.3]} 6. Nc3 {[%clk 0:03:01.3]} 6... Bg7 {[%clk
0:02:56.2]} 7. Nge2 {[%clk 0:03:00.8]} 7... Nh6 {[%clk 0:02:51.3]} 8. Bg5 {[%clk
0:02:55.8]} 8... O-O {[%clk 0:02:48]} 9. Bxh6 {[%clk 0:02:47.2]} 9... Bxh6
{[%clk 0:02:47.1]} 10. Qb3 {[%clk 0:02:47.3]} 10... Be6 {[%clk 0:02:22.3]} 11.
g3 {[%clk 0:02:16.8]} 11... f6 {[%clk 0:02:05]} 12. f4 {[%clk 0:02:04.2]} 12...
fxe5 {[%clk 0:02:02.9]} 13. dxe5 {[%clk 0:02:05.1]} 13... Qd7 {[%clk 0:01:34]}
14. Bg2 {[%clk 0:01:51.5]} 14... d4 {[%clk 0:01:27.2]} 15. Qxe6+ {[%clk
0:01:36.5]} 15... Qxe6 {[%clk 0:01:25]} 16. Bd5 {[%clk 0:01:35.5]} 16... dxc3
{[%clk 0:01:13.2]} 17. Bxe6+ {[%clk 0:01:34.6]} 17... Kh8 {[%clk 0:01:12.9]} 18.
bxc3 {[%clk 0:01:31.8]} 18... Rad8 {[%clk 0:01:04.9]} 19. Rd1 {[%clk 0:01:27.2]}
19... Rxd1+ {[%clk 0:00:40.9]} 20. Kxd1 {[%clk 0:01:26.8]} 20... Rd8+ {[%clk
0:00:41.3]} 21. Kc2 {[%clk 0:01:26.1]} 21... Nxe5 {[%clk 0:00:40.9]} 22. Nd4
{[%clk 0:01:09.5]} 22... Nc6 {[%clk 0:00:37.6]} 23. Nxc6 {[%clk 0:01:05.1]}
23... bxc6 {[%clk 0:00:37.2]} 24. Re1 {[%clk 0:01:05]} 24... Kg7 {[%clk
0:00:33.4]} 25. Bc4 {[%clk 0:01:01.3]} 25... Kf8 {[%clk 0:00:30.2]} 26. h4
{[%clk 0:00:59.1]} 26... Bg7 {[%clk 0:00:29.7]} 27. Re6 {[%clk 0:00:57.2]} 27...
Rd6 {[%clk 0:00:27.7]} 28. Re1 {[%clk 0:00:52.1]} 28... Ke8 {[%clk 0:00:25.2]}
29. Rb1 {[%clk 0:00:49]} 29... Rd7 {[%clk 0:00:19.8]} 30. Be6 {[%clk 0:00:40.6]}
30... Rd8 {[%clk 0:00:15.2]} 31. Rb7 {[%clk 0:00:37.3]} 31... Ra8 {[%clk
0:00:11.3]} 32. Rc7 {[%clk 0:00:31.3]} 32... h6 {[%clk 0:00:10.5]} 33. Rxc6
{[%clk 0:00:30.1]} 33... a5 {[%clk 0:00:08.4]} 34. Bc4 {[%clk 0:00:22.9]} 34...
Bf6 {[%clk 0:00:07.5]} 35. Bd3 {[%clk 0:00:20.2]} 35... g5 {[%clk 0:00:07]} 36.
hxg5 {[%clk 0:00:19.1]} 36... hxg5 {[%clk 0:00:07.1]} 37. fxg5 {[%clk
0:00:16.6]} 37... Bxg5 {[%clk 0:00:07]} 38. Rg6 {[%clk 0:00:16.9]} 1-0

[Event "*** Titled Tuesday Blitz"]
[Site "Chess.com"]
[Date "2021.02.16"]
[Round "7"]
[White "andrewtnb"]
[Black "Gerodot71"]
[Result "1-0"]
[WhiteElo "2329"]
[BlackElo "2463"]
[TimeControl "180+1"]
[EndTime "11:18:57 PST"]
[Termination "andrewtnb won by resignation"]

1. d4 {[%clk 0:02:38.7]} 1... Nf6 {[%clk 0:02:58.9]} 2. c4 {[%clk 0:02:36.3]}
2... e6 {[%clk 0:02:58.5]} 3. Nc3 {[%clk 0:02:36.3]} 3... Bb4 {[%clk 0:02:58.9]}
4. e3 {[%clk 0:02:36.5]} 4... O-O {[%clk 0:02:58.1]} 5. Ne2 {[%clk 0:02:35.5]}
5... d5 {[%clk 0:02:55.3]} 6. a3 {[%clk 0:02:33]} 6... Be7 {[%clk 0:02:52.9]} 7.
cxd5 {[%clk 0:02:30.3]} 7... exd5 {[%clk 0:02:53]} 8. Nf4 {[%clk 0:02:30.3]}
8... Re8 {[%clk 0:02:50.7]} 9. Be2 {[%clk 0:02:23.2]} 9... Bf8 {[%clk
0:02:50.2]} 10. O-O {[%clk 0:02:22.9]} 10... c6 {[%clk 0:02:49.5]} 11. f3 {[%clk
0:02:19]} 11... Bf5 {[%clk 0:02:46.3]} 12. g4 {[%clk 0:02:12.3]} 12... Bg6
{[%clk 0:02:37.4]} 13. h4 {[%clk 0:02:09.6]} 13... h5 {[%clk 0:02:17.2]} 14.
Nxg6 {[%clk 0:02:01.7]} 14... fxg6 {[%clk 0:02:18.1]} 15. g5 {[%clk 0:02:01]}
15... Qd6 {[%clk 0:02:14.5]} 16. Kg2 {[%clk 0:01:54.2]} 16... Nh7 {[%clk
0:02:12.5]} 17. Bd3 {[%clk 0:01:49.3]} 17... Nd7 {[%clk 0:02:07.3]} 18. Qc2
{[%clk 0:01:30.7]} 18... Re6 {[%clk 0:02:07.3]} 19. Ne2 {[%clk 0:01:28.5]} 19...
Be7 {[%clk 0:01:56.5]} 20. Nf4 {[%clk 0:01:27.3]} 20... Ndf8 {[%clk 0:01:57]}
21. Bd2 {[%clk 0:01:22.4]} 21... Re8 {[%clk 0:01:50.2]} 22. Nxe6 {[%clk
0:01:05]} 22... Qxe6 {[%clk 0:01:51.1]} 23. Rae1 {[%clk 0:00:49.4]} 23... Bd6
{[%clk 0:01:34.8]} 24. e4 {[%clk 0:00:43.2]} 24... Qf7 {[%clk 0:01:33.9]} 25. e5
{[%clk 0:00:41.6]} 25... Bb8 {[%clk 0:01:31.7]} 26. f4 {[%clk 0:00:40.4]} 26...
Qe6 {[%clk 0:01:26.4]} 27. f5 {[%clk 0:00:37.7]} 27... gxf5 {[%clk 0:01:25.4]}
28. Bxf5 {[%clk 0:00:36.5]} 28... Qe7 {[%clk 0:01:25.9]} 29. Bxh7+ {[%clk
0:00:30.5]} 29... Nxh7 {[%clk 0:01:25]} 30. Qg6 {[%clk 0:00:30.9]} 30... Nf8
{[%clk 0:01:21.6]} 31. Qxh5 {[%clk 0:00:29.9]} 31... Qe6 {[%clk 0:01:21.7]} 32.
Qf3 {[%clk 0:00:27.8]} 32... Ng6 {[%clk 0:01:17]} 33. Qg3 {[%clk 0:00:24.3]}
33... Ne7 {[%clk 0:01:14.9]} 34. Qh3 {[%clk 0:00:21.1]} 34... Qg6 {[%clk
0:01:12.3]} 35. Qg4 {[%clk 0:00:18]} 35... Qd3 {[%clk 0:01:08.7]} 36. Rf2 {[%clk
0:00:18.3]} 36... Kh7 {[%clk 0:00:36.9]} 37. h5 {[%clk 0:00:17.2]} 37... c5
{[%clk 0:00:34.2]} 38. g6+ {[%clk 0:00:17.5]} 38... Kh8 {[%clk 0:00:34.6]} 39.
h6 {[%clk 0:00:17.5]} 39... Nxg6 {[%clk 0:00:25]} 40. hxg7+ {[%clk 0:00:18.4]}
40... Kg8 {[%clk 0:00:23.5]} 41. Re3 {[%clk 0:00:15.7]} 41... Qb1 {[%clk
0:00:22.2]} 42. Rg3 {[%clk 0:00:12.3]} 42... Ne7 {[%clk 0:00:19.6]} 43. Qh5
{[%clk 0:00:11]} 43... Qe4+ {[%clk 0:00:18.9]} 44. Kh2 {[%clk 0:00:10]} 44...
Qh7 {[%clk 0:00:18.2]} 45. Qxh7+ {[%clk 0:00:08.9]} 45... Kxh7 {[%clk
0:00:19.1]} 46. Rf8 {[%clk 0:00:08.1]} 1-0

[Event "*** Titled Tuesday Blitz"]
[Site "Chess.com"]
[Date "2021.02.16"]
[Round "7"]
[White "VladimirBugayev"]
[Black "Gulkov_Igor"]
[Result "0-1"]
[WhiteElo "2309"]
[BlackElo "2477"]
[TimeControl "180+1"]
[EndTime "11:18:57 PST"]
[Termination "Gulkov_Igor won on time"]

1. e4 {[%clk 0:03:00.9]} 1... c5 {[%clk 0:02:59.3]} 2. Nc3 {[%clk 0:03:00.2]}
2... d6 {[%clk 0:02:59]} 3. f4 {[%clk 0:02:59.3]} 3... g6 {[%clk 0:02:58.7]} 4.
Nf3 {[%clk 0:02:58.9]} 4... Bg7 {[%clk 0:02:59]} 5. Bc4 {[%clk 0:02:59.3]} 5...
Nc6 {[%clk 0:02:58.6]} 6. O-O {[%clk 0:02:57.6]} 6... e6 {[%clk 0:02:58.9]} 7.
d4 {[%clk 0:02:53.3]} 7... Nxd4 {[%clk 0:02:54.1]} 8. Nxd4 {[%clk 0:02:49.2]}
8... cxd4 {[%clk 0:02:52.4]} 9. Nb5 {[%clk 0:02:43.6]} 9... Ne7 {[%clk
0:02:14.6]} 10. Nxd4 {[%clk 0:02:30.4]} 10... d5 {[%clk 0:02:08.1]} 11. exd5
{[%clk 0:02:26.6]} 11... Nxd5 {[%clk 0:02:07.8]} 12. Bxd5 {[%clk 0:01:55.6]}
12... Qxd5 {[%clk 0:02:06.6]} 13. Nf3 {[%clk 0:01:56.2]} 13... Qc5+ {[%clk
0:01:46.5]} 14. Kh1 {[%clk 0:01:55.7]} 14... O-O {[%clk 0:01:46.7]} 15. c3
{[%clk 0:01:24.6]} 15... b6 {[%clk 0:01:45.7]} 16. Ne5 {[%clk 0:01:24.6]} 16...
Ba6 {[%clk 0:01:38.3]} 17. Re1 {[%clk 0:01:21.6]} 17... Rad8 {[%clk 0:01:36.4]}
18. Qf3 {[%clk 0:01:21]} 18... Qc8 {[%clk 0:01:33.5]} 19. Be3 {[%clk 0:01:17.8]}
19... Bb7 {[%clk 0:01:33]} 20. Qf2 {[%clk 0:01:16.9]} 20... f6 {[%clk
0:01:31.6]} 21. Nf3 {[%clk 0:01:12.1]} 21... Rfe8 {[%clk 0:01:21.3]} 22. Bd4
{[%clk 0:01:11.4]} 22... Qd7 {[%clk 0:01:09.7]} 23. h3 {[%clk 0:01:08.2]} 23...
Qf7 {[%clk 0:01:07.5]} 24. a4 {[%clk 0:00:50.7]} 24... Rd5 {[%clk 0:01:04.3]}
25. a5 {[%clk 0:00:48.5]} 25... Rxa5 {[%clk 0:01:01.9]} 26. Rxa5 {[%clk
0:00:47.5]} 26... bxa5 {[%clk 0:01:02.1]} 27. Bxa7 {[%clk 0:00:47]} 27... Bxf3
{[%clk 0:01:00.7]} 28. Qxf3 {[%clk 0:00:45]} 28... Qxa7 {[%clk 0:00:59.6]} 29.
Qc6 {[%clk 0:00:40.6]} 29... Qe7 {[%clk 0:00:56.5]} 30. Qb6 {[%clk 0:00:33.2]}
30... e5 {[%clk 0:00:54.2]} 31. Qxa5 {[%clk 0:00:28.9]} 31... e4 {[%clk
0:00:54.2]} 32. Qd5+ {[%clk 0:00:28.2]} 32... Kh8 {[%clk 0:00:53.5]} 33. f5
{[%clk 0:00:28.1]} 33... e3 {[%clk 0:00:53.3]} 34. Re2 {[%clk 0:00:25.4]} 34...
Qe4 {[%clk 0:00:49.2]} 35. Qxe4 {[%clk 0:00:19.6]} 35... Rxe4 {[%clk 0:00:48.4]}
36. fxg6 {[%clk 0:00:19.4]} 36... hxg6 {[%clk 0:00:48]} 37. g4 {[%clk 0:00:20]}
37... f5 {[%clk 0:00:47.6]} 38. gxf5 {[%clk 0:00:18.4]} 38... gxf5 {[%clk
0:00:47.5]} 39. Kg2 {[%clk 0:00:19]} 39... Bh6 {[%clk 0:00:43.2]} 40. Kf3 {[%clk
0:00:18.9]} 40... Kg7 {[%clk 0:00:41.1]} 41. b4 {[%clk 0:00:16.3]} 41... Rh4
{[%clk 0:00:40.2]} 42. Rh2 {[%clk 0:00:15.3]} 42... Rc4 {[%clk 0:00:38.6]} 43.
Rc2 {[%clk 0:00:13]} 43... Kf6 {[%clk 0:00:38.1]} 44. b5 {[%clk 0:00:12.7]}
44... Ke6 {[%clk 0:00:38]} 45. b6 {[%clk 0:00:11.7]} 45... Kd5 {[%clk
0:00:32.7]} 46. b7 {[%clk 0:00:08.2]} 46... Bf4 {[%clk 0:00:32.1]} 47. Rb2
{[%clk 0:00:06]} 47... Bb8 {[%clk 0:00:30.5]} 48. Rb5+ {[%clk 0:00:05]} 48...
Ke6 {[%clk 0:00:29.7]} 49. Kxe3 {[%clk 0:00:04.4]} 49... Rxc3+ {[%clk 0:00:30]}
50. Kd4 {[%clk 0:00:04.5]} 50... Rxh3 {[%clk 0:00:29.9]} 51. Ra5 {[%clk
0:00:01.2]} 51... Kd7 {[%clk 0:00:30]} 0-1

[Event "*** Titled Tuesday Blitz"]
[Site "Chess.com"]
[Date "2021.02.16"]
[Round "7"]
[White "ajdemipopushi"]
[Black "Artem_Sadovsky"]
[Result "0-1"]
[WhiteElo "2365"]
[BlackElo "2581"]
[TimeControl "180+1"]
[EndTime "11:18:59 PST"]
[Termination "Artem_Sadovsky won on time"]

1. Nf3 {[%clk 0:03:00.9]} 1... g6 {[%clk 0:03:00.2]} 2. g3 {[%clk 0:03:01]} 2...
Bg7 {[%clk 0:03:00.7]} 3. Bg2 {[%clk 0:03:01.4]} 3... e5 {[%clk 0:03:01.3]} 4.
c4 {[%clk 0:03:01.1]} 4... d5 {[%clk 0:03:02]} 5. cxd5 {[%clk 0:02:59.8]} 5...
e4 {[%clk 0:03:02.1]} 6. Ng1 {[%clk 0:02:52.8]} 6... f5 {[%clk 0:03:02.5]} 7.
Nc3 {[%clk 0:02:52.6]} 7... Nf6 {[%clk 0:03:02.8]} 8. d3 {[%clk 0:02:52.5]} 8...
exd3 {[%clk 0:02:42.3]} 9. Qxd3 {[%clk 0:02:50]} 9... O-O {[%clk 0:02:43.2]} 10.
Nh3 {[%clk 0:02:47.1]} 10... Nbd7 {[%clk 0:02:40.6]} 11. O-O {[%clk 0:02:44.8]}
11... Nc5 {[%clk 0:02:34.4]} 12. Qc4 {[%clk 0:02:39.3]} 12... Nce4 {[%clk
0:02:30.2]} 13. d6+ {[%clk 0:02:27.8]} 13... Kh8 {[%clk 0:02:29.8]} 14. dxc7
{[%clk 0:02:27.7]} 14... Qe7 {[%clk 0:02:27]} 15. Nf4 {[%clk 0:02:18.3]} 15...
Qe5 {[%clk 0:01:57.8]} 16. Nd3 {[%clk 0:01:42.6]} 16... Qe7 {[%clk 0:01:50.2]}
17. Bf4 {[%clk 0:01:35.1]} 17... Be6 {[%clk 0:01:32.5]} 18. Qb4 {[%clk
0:01:32.8]} 18... Qf7 {[%clk 0:01:22.6]} 19. Ne5 {[%clk 0:01:27.4]} 19... Qe8
{[%clk 0:01:22.5]} 20. Qxb7 {[%clk 0:01:13.8]} 20... Rc8 {[%clk 0:01:15.1]} 21.
Rac1 {[%clk 0:00:44.7]} 21... g5 {[%clk 0:01:14.1]} 22. Be3 {[%clk 0:00:37.6]}
22... Nxc3 {[%clk 0:01:03.9]} 23. Rxc3 {[%clk 0:00:34.4]} 23... Ne4 {[%clk
0:01:02.5]} 24. Bxe4 {[%clk 0:00:27.1]} 24... fxe4 {[%clk 0:01:01.9]} 25. Bd4
{[%clk 0:00:25.8]} 25... Bh3 {[%clk 0:01:00.4]} 26. Qxe4 {[%clk 0:00:18.5]}
26... Bxf1 {[%clk 0:00:54.7]} 27. Kxf1 {[%clk 0:00:18.3]} 27... Qe6 {[%clk
0:00:53.7]} 28. Qc6 {[%clk 0:00:14.9]} 28... Qf5 {[%clk 0:00:47.9]} 29. Qc5
{[%clk 0:00:10.9]} 29... Qe4 {[%clk 0:00:39.8]} 30. Nf3 {[%clk 0:00:09.3]} 30...
Rg8 {[%clk 0:00:26.1]} 31. Bxg7+ {[%clk 0:00:08.2]} 31... Rxg7 {[%clk 0:00:27]}
32. h3 {[%clk 0:00:07.4]} 32... Rgxc7 {[%clk 0:00:17.8]} 33. Qxc7 {[%clk
0:00:06.3]} 33... Rxc7 {[%clk 0:00:18.7]} 34. Rxc7 {[%clk 0:00:06.7]} 34... Qb1+
{[%clk 0:00:19.6]} 35. Kg2 {[%clk 0:00:06.7]} 35... Qxa2 {[%clk 0:00:19.7]} 36.
Nxg5 {[%clk 0:00:03.9]} 36... Qd5+ {[%clk 0:00:20]} 37. Nf3 {[%clk 0:00:04]}
37... a5 {[%clk 0:00:20.3]} 38. e3 {[%clk 0:00:02.7]} 38... Qb5 {[%clk
0:00:19.9]} 39. Rc2 {[%clk 0:00:02.5]} 39... Qf5 {[%clk 0:00:19.8]} 40. Rd2
{[%clk 0:00:02.9]} 40... Qe4 {[%clk 0:00:20.4]} 41. g4 {[%clk 0:00:03.3]} 41...
h5 {[%clk 0:00:20]} 42. Rd4 {[%clk 0:00:03.4]} 42... Qb7 {[%clk 0:00:19.3]} 43.
gxh5 {[%clk 0:00:03.2]} 43... Qxb2 {[%clk 0:00:19.4]} 44. h6 {[%clk 0:00:02.1]}
44... Qb6 {[%clk 0:00:19.4]} 0-1

[Event "*** Titled Tuesday Blitz"]
[Site "Chess.com"]
[Date "2021.02.16"]
[Round "7"]
[White "A-S-00"]
[Black "Kotofeyca"]
[Result "1-0"]
[WhiteElo "2313"]
[BlackElo "2421"]
[TimeControl "180+1"]
[EndTime "11:19:01 PST"]
[Termination "A-S-00 won by checkmate"]

1. e4 {[%clk 0:03:00.9]} 1... c5 {[%clk 0:02:59.7]} 2. Nf3 {[%clk 0:02:59.1]}
2... d6 {[%clk 0:03:00.2]} 3. d4 {[%clk 0:02:57.4]} 3... cxd4 {[%clk 0:03:01.1]}
4. Nxd4 {[%clk 0:02:56.8]} 4... Nf6 {[%clk 0:03:01.7]} 5. Nc3 {[%clk 0:02:57.2]}
5... a6 {[%clk 0:03:02.2]} 6. f3 {[%clk 0:02:46.4]} 6... e5 {[%clk 0:02:58.2]}
7. Nb3 {[%clk 0:02:44.1]} 7... Be6 {[%clk 0:02:56.9]} 8. Be3 {[%clk 0:02:41.6]}
8... Be7 {[%clk 0:02:55.5]} 9. Qd2 {[%clk 0:02:38]} 9... Nbd7 {[%clk 0:02:54.7]}
10. g4 {[%clk 0:02:34]} 10... h6 {[%clk 0:02:52.5]} 11. O-O-O {[%clk 0:02:27.7]}
11... b5 {[%clk 0:02:52.4]} 12. h4 {[%clk 0:02:26.5]} 12... Nb6 {[%clk 0:02:38]}
13. Kb1 {[%clk 0:02:15.7]} 13... b4 {[%clk 0:02:28.5]} 14. Ne2 {[%clk
0:02:13.5]} 14... Nc4 {[%clk 0:02:21.6]} 15. Qc1 {[%clk 0:02:13.4]} 15... a5
{[%clk 0:02:09.4]} 16. Ng3 {[%clk 0:02:05.8]} 16... Nxe3 {[%clk 0:01:37.7]} 17.
Qxe3 {[%clk 0:02:04]} 17... a4 {[%clk 0:01:33.1]} 18. Nc5 {[%clk 0:01:45.6]}
18... Qb6 {[%clk 0:01:22.7]} 19. Nxe6 {[%clk 0:01:08.1]} 19... Qxe3 {[%clk
0:01:20.2]} 20. Bb5+ {[%clk 0:01:06.6]} 20... Nd7 {[%clk 0:01:10.2]} 21. Nf5
{[%clk 0:01:05.6]} 21... fxe6 {[%clk 0:00:45.6]} 22. Nxe3 {[%clk 0:01:04.8]}
22... Ra5 {[%clk 0:00:33.2]} 23. Bxd7+ {[%clk 0:01:03.4]} 23... Kxd7 {[%clk
0:00:32.6]} 24. Rd3 {[%clk 0:01:03.5]} 24... Rc5 {[%clk 0:00:23.4]} 25. b3
{[%clk 0:00:58.5]} 25... a3 {[%clk 0:00:20.2]} 26. Nc4 {[%clk 0:00:52.5]} 26...
Kc6 {[%clk 0:00:19.8]} 27. Rhd1 {[%clk 0:00:46.9]} 27... Rd8 {[%clk 0:00:18.5]}
28. h5 {[%clk 0:00:31.5]} 28... Rxc4 {[%clk 0:00:18]} 29. bxc4 {[%clk
0:00:29.2]} 29... Kc5 {[%clk 0:00:18.9]} 30. c3 {[%clk 0:00:27.9]} 30... Kxc4
{[%clk 0:00:19.1]} 31. cxb4 {[%clk 0:00:24.8]} 31... d5 {[%clk 0:00:18.9]} 32.
Rxa3 {[%clk 0:00:20.3]} 32... Bxb4 {[%clk 0:00:16.4]} 33. Rc1+ {[%clk 0:00:19]}
33... Kb5 {[%clk 0:00:13.9]} 34. Rb3 {[%clk 0:00:15.5]} 34... Ka4 {[%clk
0:00:14.1]} 35. exd5 {[%clk 0:00:10.6]} 35... exd5 {[%clk 0:00:13.9]} 36. Rc7
{[%clk 0:00:11.2]} 36... Ra8 {[%clk 0:00:11.2]} 37. Kc2 {[%clk 0:00:10.4]} 37...
d4 {[%clk 0:00:10.9]} 38. Kd3 {[%clk 0:00:10.6]} 38... Bc3 {[%clk 0:00:10.1]}
39. Rc4+ {[%clk 0:00:09.8]} 39... Ka5 {[%clk 0:00:09.4]} 40. Ra3+ {[%clk
0:00:10.3]} 40... Kb5 {[%clk 0:00:09.3]} 41. Rxa8 {[%clk 0:00:11]} 41... e4+
{[%clk 0:00:09.8]} 42. fxe4 {[%clk 0:00:11.4]} 42... Ba1 {[%clk 0:00:08.9]} 43.
Rb8+ {[%clk 0:00:11.7]} 43... Ka6 {[%clk 0:00:09.2]} 44. Ra4# {[%clk 0:00:11.6]}
1-0

[Event "*** Titled Tuesday Blitz"]
[Site "Chess.com"]
[Date "2021.02.16"]
[Round "7"]
[White "MFBerna"]
[Black "The_filthy"]
[Result "1-0"]
[WhiteElo "2492"]
[BlackElo "2337"]
[TimeControl "180+1"]
[EndTime "11:19:02 PST"]
[Termination "MFBerna won by resignation"]

1. b3 {[%clk 0:03:00.9]} 1... d6 {[%clk 0:02:59.2]} 2. Bb2 {[%clk 0:03:00.9]}
2... e5 {[%clk 0:02:57.7]} 3. e3 {[%clk 0:02:59.4]} 3... Nf6 {[%clk 0:02:56.3]}
4. d4 {[%clk 0:02:59.3]} 4... e4 {[%clk 0:02:56.6]} 5. c4 {[%clk 0:02:58.6]}
5... c6 {[%clk 0:02:55.9]} 6. Nc3 {[%clk 0:02:58.1]} 6... d5 {[%clk 0:02:55.4]}
7. Qc2 {[%clk 0:02:55.8]} 7... Bd6 {[%clk 0:02:50.7]} 8. Nge2 {[%clk 0:02:55.7]}
8... O-O {[%clk 0:02:50.1]} 9. Ng3 {[%clk 0:02:55.8]} 9... a6 {[%clk 0:02:37.7]}
10. Be2 {[%clk 0:02:51.8]} 10... b5 {[%clk 0:02:31.6]} 11. c5 {[%clk 0:02:51.7]}
11... Bc7 {[%clk 0:02:31.2]} 12. b4 {[%clk 0:02:51]} 12... a5 {[%clk 0:02:13.3]}
13. a3 {[%clk 0:02:48.6]} 13... a4 {[%clk 0:02:13.5]} 14. O-O-O {[%clk
0:02:44.3]} 14... Be6 {[%clk 0:02:02.5]} 15. f3 {[%clk 0:02:40.6]} 15... exf3
{[%clk 0:01:56.3]} 16. Bxf3 {[%clk 0:02:32.1]} 16... Re8 {[%clk 0:01:53]} 17.
Rde1 {[%clk 0:02:31.6]} 17... Nbd7 {[%clk 0:01:40.2]} 18. Rhf1 {[%clk
0:02:30.6]} 18... Nf8 {[%clk 0:01:39.3]} 19. Kb1 {[%clk 0:02:29.1]} 19... Ng6
{[%clk 0:01:39.4]} 20. e4 {[%clk 0:02:05.6]} 20... dxe4 {[%clk 0:01:30]} 21.
Ncxe4 {[%clk 0:02:03.2]} 21... Nd5 {[%clk 0:01:28.3]} 22. Bc1 {[%clk 0:01:41.6]}
22... h6 {[%clk 0:01:18.3]} 23. Nh5 {[%clk 0:01:40.5]} 23... Qh4 {[%clk
0:01:12.8]} 24. g3 {[%clk 0:01:38.5]} 24... Qd8 {[%clk 0:01:05.2]} 25. Bg2
{[%clk 0:01:28.3]} 25... Nde7 {[%clk 0:01:00.5]} 26. Bxh6 {[%clk 0:01:19.2]}
26... gxh6 {[%clk 0:00:42.1]} 27. Nef6+ {[%clk 0:01:19.1]} 27... Kh8 {[%clk
0:00:36.9]} 28. Qd2 {[%clk 0:01:19.2]} 28... Ng8 {[%clk 0:00:35]} 29. Nxg8
{[%clk 0:01:16.6]} 29... Kxg8 {[%clk 0:00:33.3]} 30. Qxh6 {[%clk 0:01:15.8]}
30... Qxd4 {[%clk 0:00:31]} 31. Nf6+ {[%clk 0:01:14.1]} 31... Qxf6 {[%clk
0:00:30.8]} 32. Rxf6 {[%clk 0:01:14.7]} 32... Bf5+ {[%clk 0:00:24.6]} 33. Rxf5
{[%clk 0:01:14.8]} 33... Rxe1+ {[%clk 0:00:24.7]} 34. Kc2 {[%clk 0:01:12.5]}
34... Re2+ {[%clk 0:00:21.6]} 35. Kc1 {[%clk 0:00:56.7]} 35... Rxg2 {[%clk
0:00:20.8]} 36. Qe3 {[%clk 0:00:49.3]} 36... Rd8 {[%clk 0:00:17.7]} 37. Rf2
{[%clk 0:00:40.7]} 37... Rg1+ {[%clk 0:00:17.4]} 38. Kc2 {[%clk 0:00:40.3]}
38... Rdd1 {[%clk 0:00:17.1]} 39. Rf5 {[%clk 0:00:26.9]} 39... Rc1+ {[%clk
0:00:10]} 40. Qxc1 {[%clk 0:00:24.8]} 40... Rxc1+ {[%clk 0:00:10.9]} 41. Kxc1
{[%clk 0:00:25.7]} 41... Ne5 {[%clk 0:00:11.5]} 42. Kc2 {[%clk 0:00:25.2]} 42...
Nc4 {[%clk 0:00:11.4]} 43. Rf3 {[%clk 0:00:23.7]} 43... Be5 {[%clk 0:00:09.2]}
44. Kb1 {[%clk 0:00:17.7]} 44... f6 {[%clk 0:00:06.5]} 45. Ka2 {[%clk
0:00:17.7]} 45... Nd2 {[%clk 0:00:07.4]} 46. Rd3 {[%clk 0:00:15.8]} 46... Kf7
{[%clk 0:00:05.3]} 47. Rxd2 {[%clk 0:00:13.8]} 1-0